fUSD/lending_fUSD_20250214
["ID","MTS","AMOUNT","RATE_DAILY","PERIOD"]
[353119335,1739566288771,-2330.47,0.00014109,2]
[353119336,1739566288781,-860.46,0.00014109,2]
[353119337,1739566288791,-4851.48,0.00014109,2]
[353119338,1739566288800,-500.0,0.00014109,2]
[353119339,1739566288810,-3084.92,0.00014109,2]
[353119340,1739566288820,-500.0,0.00014109,2]
[353119341,1739566288830,-667.69,0.00014109,2]
[353119342,1739566288840,-1520.32,0.00014109,2]
[353119343,1739566288851,-569.14,0.00014109,2]
[353119344,1739566288968,-883.89,0.00014109,2]
[353119345,1739566288978,-1295.15,0.00014109,2]
[353119346,1739566288990,-1976.66,0.00014109,2]
[353119347,1739566288999,-500.0,0.00014109,2]
[353119348,1739566289008,-1194.78,0.00014109,2]
[353119349,1739566289018,-1135.37,0.00014109,2]
[353119350,1739566289027,-500.0,0.00014109,2]
[353119351,1739566289036,-3133.2,0.00014109,2]
[353119352,1739566289046,-2227.17,0.00014109,2]
[353119353,1739566289056,-500.0,0.00014109,2]
[353119354,1739566289067,-1929.53,0.00014109,2]
[353119355,1739566289077,-802.32,0.00014109,2]
[353119356,1739566289086,-519.05,0.00014109,2]
[353119357,1739566289096,-1248.93,0.00014109,2]
[353119358,1739566289105,-1861.87,0.00014109,2]
[353119359,1739566289127,-688.14,0.00014109,2]
[353119360,1739566289138,-500.0,0.00014109,2]
[353119361,1739566289148,-662.93,0.00014109,2]
[353119362,1739566289158,-684.97,0.00014109,2]
[353119363,1739566289168,-517.09,0.00014109,2]
[353119364,1739566289178,-500.0,0.00014109,2]
[353119365,1739566289188,-1152.88,0.00014109,2]
[353119366,1739566289201,-1705.16,0.00014109,2]
[353119367,1739566289212,-500.0,0.00014109,2]
[353119368,1739566289222,-1236.6,0.00014109,2]
[353119369,1739566289232,-4024.19,0.00014109,2]
[353119370,1739566289243,-727.92,0.00014109,2]
[353119371,1739566289252,-1661.4,0.00014109,2]
[353119372,1739566289262,-1382.2122777,0.00014149,2]
[353119373,1739566289272,-192.10500916,0.00014149,2]
[353119374,1739566289282,-500.0,0.00014149,2]
[353119375,1739566289293,-324.4825419,0.00014149,2]
[353119376,1739566289303,-518.82588099,0.00014149,2]
[353119377,1739566289313,-358.28627625,0.00014149,2]
[353119378,1739566289326,-500.0,0.00014155,2]
[353119379,1739566289336,-500.0,0.00014155,2]
[353119380,1739566289346,-1165.9979789,0.00014181,2]
[353119381,1739566289356,-762.49,0.0001419,2]
[353119382,1739566289365,-621.67,0.0001419,2]
[353119383,1739566289374,-874.968359,0.00014191,2]
[353119384,1739566289384,-851.952662,0.00014191,2]
[353119385,1739566289394,-155.533794,0.00014191,2]
[353119386,1739566289404,-500.0,0.00014191,2]
[353119387,1739566289414,-500.0,0.00014191,2]
[353119388,1739566289423,-500.0,0.00014191,2]
[353119389,1739566289433,-619.8717276,0.00014191,2]
[353119390,1739566289443,-500.0,0.00014191,2]
[353119391,1739566289453,-500.0,0.00014191,2]
[353119392,1739566289463,-500.0,0.00014191,2]
[353119393,1739566289472,-500.0,0.00014191,2]
[353119394,1739566289482,-500.0,0.00014191,2]
[353119395,1739566289491,-536.18,0.00014191,2]
[353119396,1739566289501,-191.25841974,0.00014191,2]
[353119397,1739566289511,-500.0,0.00014191,2]
[353119398,1739566289521,-500.0,0.00014191,2]
[353119399,1739566289530,-500.0,0.00014191,2]
[353119400,1739566289540,-503.69,0.00014191,2]
[353119401,1739566289550,-500.0,0.00014191,2]
[353119402,1739566289559,-500.0,0.00014191,2]
[353119403,1739566289571,-500.0,0.00014191,2]
[353119404,1739566289582,-506.51,0.00014191,2]
[353119405,1739566289594,-500.0,0.00014191,2]
[353119406,1739566289604,-500.0,0.00014191,2]
[353119407,1739566289614,-500.0,0.00014191,2]
[353119408,1739566289624,-500.0,0.00014191,2]
[353119409,1739566289634,-500.0,0.00014191,2]
[353119410,1739566289649,-500.0,0.00014191,2]
[353119411,1739566289659,-558.31,0.00014191,2]
[353119412,1739566289669,-500.0,0.00014191,2]
[353119413,1739566289679,-500.0,0.00014191,2]
[353119414,1739566289690,-519.27,0.00014191,2]
[353119415,1739566289701,-500.0,0.00014191,2]
[353119416,1739566289711,-500.0,0.00014191,2]
[353119417,1739566289721,-543.38281123,0.00014191,2]
[353119418,1739566289731,-500.0,0.00014191,2]
[353119419,1739566289741,-1200.0,0.00014191,2]
[353119420,1739566289750,-512.74,0.00014191,2]
[353119421,1739566289761,-500.0,0.00014191,2]
[353119422,1739566289770,-757.95,0.00014191,2]
[353119423,1739566289781,-565.76,0.00014191,2]
[353119424,1739566289790,-500.0,0.00014191,2]
[353119425,1739566289800,-500.0,0.00014191,2]
[353119426,1739566289810,-500.0,0.00014191,2]
[353119427,1739566289820,-500.0,0.00014191,2]
[353119428,1739566289830,-1107.64,0.00014191,2]
[353119429,1739566289840,-500.0,0.00014191,2]
[353119430,1739566289850,-500.0,0.00014191,2]
[353119431,1739566289859,-500.0,0.00014191,2]
[353119432,1739566289869,-500.0,0.00014191,2]
[353119433,1739566289880,-589.74,0.00014191,2]
[353119434,1739566289891,-536.38,0.00014191,2]
[353119435,1739566289900,-500.0,0.00014191,2]
[353119436,1739566289910,-617.81,0.00014191,2]
[353119437,1739566289920,-500.0,0.00014191,2]
[353119438,1739566289930,-587.28,0.00014191,2]
[353119439,1739566289940,-500.0,0.00014191,2]
[353119440,1739566289950,-750.15,0.00014191,2]
[353119441,1739566289960,-500.0,0.00014191,2]
[353119442,1739566289970,-2392.8,0.00014191,2]
[353119443,1739566289979,-591.54,0.00014191,2]
[353119444,1739566289989,-500.0,0.00014191,2]
[353119445,1739566289999,-500.0,0.00014191,2]
[353119446,1739566290008,-500.0,0.00014191,2]
[353119447,1739566290018,-583.03,0.00014191,2]
[353119448,1739566290027,-1274.03,0.00014191,2]
[353119449,1739566290037,-500.0,0.00014191,2]
[353119450,1739566290046,-500.0,0.00014191,2]
[353119451,1739566290056,-500.0,0.00014191,2]
[353119452,1739566290065,-800.51,0.00014191,2]
[353119453,1739566290074,-1788.5,0.00014191,2]
[353119454,1739566290084,-500.0,0.00014191,2]
[353119455,1739566290093,-500.0,0.00014191,2]
[353119456,1739566290103,-562.16830906,0.00014191,2]
[353119457,1739566290112,-1330.5,0.00014191,2]
[353119458,1739566290121,-500.0,0.00014191,2]
[353119459,1739566290131,-500.0,0.00014191,2]
[353119460,1739566290140,-500.0,0.00014191,2]
[353119461,1739566290150,-740.69,0.00014191,2]
[353119462,1739566290164,-500.0,0.00014191,2]
[353119463,1739566290174,-1124.22,0.00014191,2]
[353119464,1739566290184,-500.0,0.00014191,2]
[353119465,1739566290194,-500.0,0.00014191,2]
[353119466,1739566290205,-500.0,0.00014191,2]
[353119467,1739566290217,-569.68,0.00014191,2]
[353119468,1739566290227,-500.0,0.00014191,2]
[353119469,1739566290236,-500.0,0.00014191,2]
[353119470,1739566290246,-500.0,0.00014191,2]
[353119471,1739566290258,-783.23,0.00014191,2]
[353119472,1739566290268,-1019.53,0.00014191,2]
[353119473,1739566290279,-1273.67,0.00014191,2]
[353119474,1739566290289,-500.0,0.00014191,2]
[353119475,1739566290300,-719.23,0.00014191,2]
[353119476,1739566290309,-1340.4,0.00014191,2]
[353119477,1739566290321,-500.0,0.00014191,2]
[353119478,1739566290330,-912.68,0.00014191,2]
[353119479,1739566290340,-892.96,0.00014191,2]
[353119480,1739566290350,-500.0,0.00014191,2]
[353119481,1739566290359,-500.0,0.00014191,2]
[353119482,1739566290368,-1331.32,0.00014191,2]
[353119483,1739566290378,-564.14,0.00014191,2]
[353119484,1739566290387,-558.34,0.00014191,2]
[353119485,1739566290396,-500.0,0.00014191,2]
[353119486,1739566290406,-500.0,0.00014191,2]
[353119487,1739566290416,-500.0,0.00014191,2]
[353119488,1739566290426,-513.62,0.00014191,2]
[353119489,1739566290435,-500.0,0.00014191,2]
[353119490,1739566290445,-678.74,0.00014191,2]
[353119491,1739566290456,-583.73,0.00014191,2]
[353119492,1739566290466,-1406.71,0.00014191,2]
[353119493,1739566290476,-375.07565421,0.00014191,2]
[353119494,1739566290486,-964.12,0.00014191,2]
[353119495,1739566290495,-793.22,0.00014191,2]
[353119496,1739566290504,-500.0,0.00014191,2]
[353119497,1739566290514,-1085.56,0.00014191,2]
[353119498,1739566290524,-500.0,0.00014191,2]
[353119499,1739566290534,-541.36,0.00014191,2]
[353119500,1739566290544,-667.26,0.00014191,2]
[353119501,1739566290553,-500.0,0.00014191,2]
[353119502,1739566290563,-673.36,0.00014191,2]
[353119503,1739566290573,-500.0,0.00014191,2]
[353119504,1739566290583,-1082.27,0.00014191,2]
[353119505,1739566290593,-500.0,0.00014191,2]
[353119506,1739566290603,-547.12923672,0.00014191,2]
[353119507,1739566290613,-533.8,0.00014191,2]
[353119508,1739566290624,-500.0,0.00014191,2]
[353119509,1739566290635,-735.54,0.00014191,2]
[353119510,1739566290645,-669.31,0.00014191,2]
[353119511,1739566290655,-500.0,0.00014191,2]
[353119512,1739566290665,-500.0,0.00014191,2]
[353119513,1739566290675,-500.0,0.00014191,2]
[353119514,1739566290685,-883.81,0.00014191,2]
[353119515,1739566290694,-500.0,0.00014191,2]
[353119516,1739566290703,-500.0,0.00014191,2]
[353119517,1739566290713,-1107.54,0.00014191,2]
[353119518,1739566290724,-1293.24,0.00014191,2]
[353119519,1739566290735,-925.37,0.00014191,2]
[353119520,1739566290744,-757.13,0.00014191,2]
[353119521,1739566290754,-500.0,0.00014191,2]
[353119522,1739566290764,-500.0,0.00014191,2]
[353119523,1739566290773,-868.29,0.00014191,2]
[353119524,1739566290783,-500.0,0.00014191,2]
[353119525,1739566290792,-500.0,0.00014191,2]
[353119526,1739566290803,-653.19,0.00014191,2]
[353119527,1739566290812,-534.17,0.00014191,2]
[353119528,1739566290823,-500.0,0.00014191,2]
[353119529,1739566290832,-631.96,0.00014191,2]
[353119530,1739566290842,-500.0,0.00014191,2]
[353119531,1739566290851,-818.28,0.00014191,2]
[353119532,1739566290861,-694.26,0.00014191,2]
[353119533,1739566290871,-500.0,0.00014191,2]
[353119534,1739566290881,-897.15,0.00014191,2]
[353119535,1739566290890,-898.94,0.00014191,2]
[353119536,1739566290901,-500.0,0.00014191,2]
[353119537,1739566290911,-500.0,0.00014191,2]
[353119538,1739566290920,-621.48,0.00014191,2]
[353119539,1739566290930,-500.0,0.00014191,2]
[353119540,1739566290940,-738.99,0.00014191,2]
[353119541,1739566290950,-500.0,0.00014191,2]
[353119542,1739566290959,-500.0,0.00014191,2]
[353119543,1739566290969,-551.59,0.00014191,2]
[353119544,1739566290979,-1738.29,0.00014191,2]
[353119545,1739566290989,-537.31,0.00014191,2]
[353119546,1739566290999,-500.0,0.00014191,2]
[353119547,1739566291009,-644.46,0.00014191,2]
[353119548,1739566291019,-500.0,0.00014191,2]
[353119549,1739566291029,-681.31,0.00014191,2]
[353119550,1739566291039,-500.0,0.00014191,2]
[353119551,1739566291050,-518.76,0.00014191,2]
[353119552,1739566291061,-500.0,0.00014191,2]
[353119553,1739566291071,-500.0,0.00014191,2]
[353119554,1739566291082,-500.0,0.00014191,2]
[353119555,1739566291093,-1083.31,0.00014191,2]
[353119556,1739566291104,-500.0,0.00014191,2]
[353119557,1739566291115,-502.76,0.00014191,2]
[353119558,1739566291126,-508.01,0.00014191,2]
[353119559,1739566291135,-1023.77,0.00014191,2]
[353119560,1739566291146,-500.0,0.00014191,2]
[353119561,1739566291156,-573.89,0.00014191,2]
[353119562,1739566291167,-500.0,0.00014191,2]
[353119563,1739566291178,-500.0,0.00014191,2]
[353119564,1739566291188,-927.77,0.00014191,2]
[353119565,1739566291200,-616.63,0.00014191,2]
[353119566,1739566291215,-500.0,0.00014191,2]
[353119567,1739566291226,-500.0,0.00014191,2]
[353119568,1739566291237,-500.0,0.00014191,2]
[353119569,1739566291248,-1426.12,0.00014191,2]
[353119570,1739566291261,-1153.11,0.00014191,2]
[353119571,1739566291271,-626.41,0.00014191,2]
[353119572,1739566291283,-500.0,0.00014191,2]
[353119573,1739566291293,-1100.39,0.00014191,2]
[353119574,1739566291305,-583.6,0.00014191,2]
[353119575,1739566291316,-675.34,0.00014191,2]
[353119576,1739566291326,-966.1,0.00014191,2]
[353119577,1739566291337,-500.0,0.00014191,2]
[353119578,1739566291347,-500.0,0.00014191,2]
[353119579,1739566291358,-500.0,0.00014191,2]
[353119580,1739566291369,-500.0,0.00014191,2]
[353119581,1739566291380,-515.12182078,0.00014191,2]
[353119582,1739566291390,-942.55,0.00014191,2]
[353119583,1739566291401,-1213.1,0.00014191,2]
[353119584,1739566291411,-863.9,0.00014191,2]
[353119585,1739566291421,-500.0,0.00014191,2]
[353119586,1739566291432,-500.0,0.00014191,2]
[353119587,1739566291442,-151.0,0.00014191,2]
[353119588,1739566291453,-500.0,0.00014191,2]
[353119589,1739566291463,-853.01,0.00014191,2]
[353119590,1739566291474,-507.29,0.00014191,2]
[353119591,1739566291484,-500.0,0.00014191,2]
[353119592,1739566291494,-850.74,0.00014191,2]
[353119593,1739566291505,-1067.49,0.00014191,2]
[353119594,1739566291515,-614.03,0.00014191,2]
[353119595,1739566291526,-674.85,0.00014191,2]
[353119596,1739566291536,-953.81,0.00014191,2]
[353119597,1739566291547,-936.1,0.00014191,2]
[353119598,1739566291558,-704.52,0.00014191,2]
[353119599,1739566291569,-500.0,0.00014191,2]
[353119600,1739566291580,-1852.67,0.00014191,2]
[353119601,1739566291590,-500.0,0.00014191,2]
[353119602,1739566291600,-597.11,0.00014191,2]
[353119603,1739566291611,-2467.3,0.00014191,2]
[353119604,1739566291622,-2316.56,0.00014191,2]
[353119605,1739566291633,-500.0,0.00014191,2]
[353119606,1739566291644,-500.0,0.00014191,2]
[353119607,1739566291655,-842.17,0.00014191,2]
[353119608,1739566291666,-2018.88,0.00014191,2]
[353119609,1739566291678,-1346.43,0.00014191,2]
[353119610,1739566291690,-931.73,0.00014191,2]
[353119611,1739566291702,-500.0,0.00014191,2]
[353119612,1739566291712,-654.79,0.00014191,2]
[353119613,1739566291723,-592.75,0.00014191,2]
[353119614,1739566291735,-1316.77,0.00014191,2]
[353119615,1739566291745,-500.0,0.00014191,2]
[353119616,1739566291756,-1311.38,0.00014191,2]
[353119617,1739566291766,-1927.46,0.00014191,2]
[353119618,1739566291778,-500.0,0.00014191,2]
[353119619,1739566291789,-1226.1,0.00014191,2]
[353119620,1739566291800,-1497.33,0.00014191,2]
[353119621,1739566291811,-1983.45,0.00014191,2]
[353119622,1739566291822,-1529.01,0.00014191,2]
[353119623,1739566291833,-2406.51,0.00014191,2]
[353119624,1739566291844,-670.85,0.00014191,2]
[353119625,1739566291856,-503.07,0.00014191,2]
[353119626,1739566291867,-514.11,0.00014191,2]
[353119627,1739566291878,-701.6,0.00014191,2]
[353119628,1739566291890,-1219.04,0.00014191,2]
[353119629,1739566291901,-2433.16,0.00014191,2]
[353119630,1739566291911,-1086.21,0.00014191,2]
[353119631,1739566291922,-1332.76,0.00014191,2]
[353119632,1739566291934,-500.0,0.00014191,2]
[353119633,1739566291945,-500.0,0.00014191,2]
[353119634,1739566291956,-1041.19,0.00014191,2]
[353119635,1739566291968,-500.0,0.00014191,2]
[353119636,1739566291979,-500.0,0.00014191,2]
[353119637,1739566291990,-1357.25,0.00014191,2]
[353119638,1739566292001,-1158.9,0.00014191,2]
[353119639,1739566292011,-1814.98,0.00014191,2]
[353119640,1739566292023,-3315.84,0.00014191,2]
[353119641,1739566292034,-1092.63,0.00014191,2]
[353119642,1739566292043,-1307.26,0.00014191,2]
[353119643,1739566292054,-1239.09,0.00014191,2]
[353119644,1739566292064,-1164.5,0.00014191,2]
[353119645,1739566292075,-1608.88,0.00014191,2]
[353119646,1739566292086,-500.0,0.00014191,2]
[353119647,1739566292097,-500.0,0.00014191,2]
[353119648,1739566292108,-1805.89,0.00014191,2]
[353119649,1739566292119,-2219.87,0.00014191,2]
[353119650,1739566292131,-1235.55,0.00014191,2]
[353119651,1739566292142,-604.24,0.00014191,2]
[353119652,1739566292153,-1082.39,0.00014191,2]
[353119653,1739566292164,-2116.85,0.00014191,2]
[353119654,1739566292174,-500.0,0.00014191,2]
[353119655,1739566292185,-661.33,0.00014191,2]
[353119656,1739566292199,-2112.18,0.00014191,2]
[353119657,1739566292209,-500.0,0.00014191,2]
[353119658,1739566292220,-500.0,0.00014191,2]
[353119659,1739566292231,-1872.0,0.00014191,2]
[353119660,1739566292243,-1558.85,0.00014191,2]
[353119661,1739566292253,-500.0,0.00014191,2]
[353119662,1739566292264,-1157.73,0.00014191,2]
[353119663,1739566292275,-500.0,0.00014191,2]
[353119664,1739566292287,-699.76,0.00014191,2]
[353119665,1739566292298,-2970.66,0.00014191,2]
[353119666,1739566292309,-508.25,0.00014191,2]
[353119667,1739566292320,-500.0,0.00014191,2]
[353119668,1739566292330,-586.78,0.00014191,2]
[353119669,1739566292341,-500.0,0.00014191,2]
[353119670,1739566292352,-929.92,0.00014191,2]
[353119671,1739566292363,-500.0,0.00014191,2]
[353119672,1739566292374,-635.89,0.00014191,2]
[353119673,1739566292384,-2913.77,0.00014191,2]
[353119674,1739566292395,-4186.79,0.00014191,2]
[353119675,1739566292406,-902.65,0.00014191,2]
[353119676,1739566292417,-1399.17,0.00014191,2]
[353119677,1739566292427,-2196.62,0.00014191,2]
[353119678,1739566292438,-500.0,0.00014191,2]
[353119679,1739566292449,-500.0,0.00014191,2]
[353119680,1739566292462,-2628.96,0.00014191,2]
[353119681,1739566292472,-1928.84,0.00014191,2]
[353119682,1739566292483,-1158.56,0.00014191,2]
[353119683,1739566292494,-1153.76,0.00014191,2]
[353119684,1739566292504,-1479.96,0.00014191,2]
[353119685,1739566292516,-739.42,0.00014191,2]
[353119686,1739566292526,-306.9377985,0.00014191,2]
[353119687,1739566292537,-1028.48,0.00014191,2]
[353119688,1739566292548,-1597.62,0.00014191,2]
[353119689,1739566292558,-500.0,0.00014191,2]
[353119690,1739566292569,-1906.43,0.00014191,2]
[353119691,1739566292581,-3241.0,0.00014191,2]
[353119692,1739566292592,-816.33,0.00014191,2]
[353119693,1739566292603,-500.0,0.00014191,2]
[353119694,1739566292614,-849.22,0.00014191,2]
[353119695,1739566292624,-1191.81,0.00014191,2]
[353119696,1739566292635,-1332.32,0.00014191,2]
[353119697,1739566292646,-939.58,0.00014191,2]
[353119698,1739566292658,-527.13,0.00014191,2]
[353119699,1739566292669,-553.25453821,0.00014191,2]
[353119700,1739566292680,-1257.55,0.00014191,2]
[353119701,1739566292692,-2807.42,0.00014191,2]
[353119702,1739566292705,-1704.06,0.00014191,2]
[353119703,1739566292715,-500.0,0.00014191,2]
[353119704,1739566292727,-2998.46,0.00014191,2]
[353119705,1739566292738,-556.02,0.00014191,2]
[353119706,1739566292748,-500.0,0.00014191,2]
[353119707,1739566292759,-2289.6,0.00014191,2]
[353119708,1739566292771,-712.61,0.00014191,2]
[353119709,1739566292782,-1979.01,0.00014191,2]
[353119710,1739566292792,-1375.26,0.00014191,2]
[353119711,1739566292804,-2871.06,0.00014191,2]
[353119712,1739566292814,-3197.44,0.00014191,2]
[353119713,1739566292827,-1256.84,0.00014191,2]
[353119714,1739566292838,-500.0,0.00014191,2]
[353119715,1739566292849,-615.54,0.00014191,2]
[353119716,1739566292860,-500.0,0.00014191,2]
[353119717,1739566292872,-500.0,0.00014191,2]
[353119718,1739566292883,-500.0,0.00014191,2]
[353119719,1739566292895,-500.0,0.00014191,2]
[353119720,1739566292906,-1359.06,0.00014191,2]
[353119721,1739566292916,-1995.79,0.00014191,2]
[353119722,1739566292927,-2330.96,0.00014191,2]
[353119723,1739566292937,-10858.08,0.00014191,2]
[353119724,1739566292948,-907.98,0.00014191,2]
[353119725,1739566292959,-500.0,0.00014191,2]
[353119726,1739566292970,-500.0,0.00014191,2]
[353119727,1739566292982,-729.91,0.00014191,2]
[353119728,1739566292992,-531.25,0.00014191,2]
[353119729,1739566293002,-500.0,0.00014191,2]
[353119730,1739566293013,-524.39,0.00014191,2]
[353119731,1739566293024,-1278.12,0.00014191,2]
[353119732,1739566293035,-925.72,0.00014191,2]
[353119733,1739566293046,-534.03,0.00014191,2]
[353119734,1739566293057,-2822.56,0.00014191,2]
[353119735,1739566293068,-1717.5,0.00014191,2]
[353119736,1739566293081,-2435.86,0.00014191,2]
[353119737,1739566293092,-500.0,0.00014191,2]
[353119738,1739566293104,-500.0,0.00014191,2]
[353119739,1739566293116,-500.0,0.00014191,2]
[353119740,1739566293127,-1647.15,0.00014191,2]
[353119741,1739566293139,-760.05,0.00014191,2]
[353119742,1739566293150,-2378.56,0.00014191,2]
[353119743,1739566293161,-500.0,0.00014191,2]
[353119744,1739566293172,-1674.92,0.00014191,2]
[353119745,1739566293183,-2543.87,0.00014191,2]
[353119746,1739566293194,-2943.72,0.00014191,2]
[353119747,1739566293207,-605.91,0.00014191,2]
[353119748,1739566293218,-655.62,0.00014191,2]
[353119749,1739566293230,-500.0,0.00014191,2]
[353119750,1739566293241,-500.0,0.00014191,2]
[353119751,1739566293253,-500.0,0.00014191,2]
[353119752,1739566293263,-5616.87,0.00014191,2]
[353119753,1739566293273,-3193.42,0.00014191,2]
[353119754,1739566293287,-1726.03,0.00014191,2]
[353119755,1739566293297,-2562.68,0.00014191,2]
[353119756,1739566293308,-2524.45,0.00014191,2]
[353119757,1739566293320,-3694.54,0.00014191,2]
[353119758,1739566293331,-500.0,0.00014191,2]
[353119759,1739566293342,-2033.18,0.00014191,2]
[353119760,1739566293353,-550.44,0.00014191,2]
[353119761,1739566293364,-500.0,0.00014191,2]
[353119762,1739566293376,-2191.43,0.00014191,2]
[353119763,1739566293388,-645.64,0.00014191,2]
[353119764,1739566293630,-2232.76,0.00014191,2]
[353119765,1739566293642,-643.31,0.00014191,2]
[353119766,1739566293654,-539.61,0.00014191,2]
[353119767,1739566293665,-607.81,0.00014191,2]
[353119768,1739566293676,-1959.93,0.00014191,2]
[353119769,1739566293686,-500.0,0.00014191,2]
[353119770,1739566293698,-1505.1,0.00014191,2]
[353119771,1739566293710,-8241.8,0.00014191,2]
[353119772,1739566293721,-1325.07,0.00014191,2]
[353119773,1739566293732,-500.0,0.00014191,2]
[353119774,1739566293742,-886.49,0.00014191,2]
[353119775,1739566293753,-1367.66,0.00014191,2]
[353119776,1739566293763,-500.0,0.00014191,2]
[353119777,1739566293775,-731.34,0.00014191,2]
[353119778,1739566293785,-796.57,0.00014191,2]
[353119779,1739566293795,-500.0,0.00014191,2]
[353119780,1739566293806,-500.0,0.00014191,2]
[353119781,1739566293816,-719.16,0.00014191,2]
[353119782,1739566293827,-660.92,0.00014191,2]
[353119783,1739566293837,-2622.2,0.00014191,2]
[353119784,1739566293848,-500.0,0.00014191,2]
[353119785,1739566293859,-899.83,0.00014191,2]
[353119786,1739566293870,-3674.69,0.00014191,2]
[353119787,1739566293882,-1508.59,0.00014191,2]
[353119788,1739566293893,-2330.47,0.00014191,2]
[353119789,1739566293904,-860.46,0.00014191,2]
[353119790,1739566293914,-4851.48,0.00014191,2]
[353119791,1739566293924,-500.0,0.00014191,2]
[353119792,1739566293935,-3084.92,0.00014191,2]
[353119793,1739566293945,-500.0,0.00014191,2]
[353119794,1739566293957,-667.69,0.00014191,2]
[353119795,1739566293968,-1520.32,0.00014191,2]
[353119796,1739566293979,-569.14,0.00014191,2]
[353119797,1739566293989,-883.89,0.00014191,2]
[353119798,1739566293999,-1295.15,0.00014191,2]
[353119799,1739566294009,-1976.66,0.00014191,2]
[353119800,1739566294020,-500.0,0.00014191,2]
[353119801,1739566294030,-1194.78,0.00014191,2]
[353119802,1739566294040,-1135.37,0.00014191,2]
[353119803,1739566294050,-500.0,0.00014191,2]
[353119804,1739566294061,-3133.2,0.00014191,2]
[353119805,1739566294072,-2227.17,0.00014191,2]
[353119806,1739566294083,-500.0,0.00014191,2]
[353119807,1739566294094,-1929.53,0.00014191,2]
[353119808,1739566294105,-802.32,0.00014191,2]
[353119809,1739566294115,-519.05,0.00014191,2]
[353119810,1739566294126,-1248.93,0.00014191,2]
[353119811,1739566294137,-688.14,0.00014191,2]
[353119812,1739566294147,-1861.87,0.00014191,2]
[353119813,1739566294157,-285.53170598,0.00014191,2]
[353119814,1739566294167,-662.93,0.00014191,2]
[353119815,1739566294178,-684.97,0.00014191,2]
[353119816,1739566294188,-517.09,0.00014191,2]
[353119817,1739566294201,-500.0,0.00014191,2]
[353119818,1739566294211,-1152.88,0.00014191,2]
[353119819,1739566294221,-500.0,0.00014191,2]
[353119820,1739566294232,-1705.16,0.00014191,2]
[353119821,1739566294256,-1236.6,0.00014191,2]
[353119822,1739566294269,-4024.19,0.00014191,2]
[353119823,1739566294283,-727.92,0.00014191,2]
[353119824,1739566294295,-599.81,0.000142,2]
[353119825,1739566294307,-500.0,0.000142,2]
[353119826,1739566294319,-2000.0,0.000142,2]
[353119827,1739566294330,-500.0,0.000142,2]
[353119828,1739566294342,-500.0,0.000142,2]
[353119829,1739566294354,-200.0,0.000142,2]
[353119830,1739566294366,-155.418946,0.00014203,3]
[353119831,1739566294378,-660.05227056,0.00014215,2]
[353119832,1739566294390,-150.0,0.00014243,2]
[353119833,1739566294400,-150.0,0.0001425,2]
[353119834,1739566294411,-621.67,0.00014272,2]